[Event "Denmark Team Championship 2022"]
[Site "Denmark"]
[Date "2022.03.13"]
[Round "4.6"]
[White "Palm, Nikolaj"]
[Black "Rathlev, Jakob"]
[Result "1-0"]
[ECO "A43"]
[WhiteElo "2308"]
[BlackElo "2238"]
[Annotator "TA"]
[PlyCount "79"]
[EventDate "2022.10.29"]
[EventType "team-tourn"]
[EventCountry "DEN"]
[SourceTitle "playchess.com"]
[Source "ChessBase"]
[SourceQuality "1"]
[TimeControl "40/5400+30:1800+30"]

{[%evp 13,79,0,0,0,0,-1,-1,0,0,-35,-5,-47,-29,-28,-34,-86,-6,-13,-10,-10,-10,-149,-134,-119,-137,-125,-123,-136,-123,-158,-162,-137,-52,-43,-48,-54,-50,-425,-24,-16,181,60,60,-2,-3,-8,91,40,66,54,237,145,320,304,535,520,885,553,533,541,733,730,712,686,919,888,29997,29998]} 1. d4 {[%emt 0:00:04]} c5 {[%emt 0:00:35]} 2. e3 {[%emt 0:00:17]} e6 {[%emt 0:00:32]} 3. Nf3 {[%emt 0:00:09]} Nf6 {[%emt 0:00:32]} 4. Bd3 {[%emt 0:02:18]} b6 {[%emt 0:00:16]} 5. O-O {[%emt 0:00:46]} Bb7 {[%emt 0:00:13]} 6. Nbd2 {[%emt 0:03:42]} Nc6 {[%emt 0:01:27]} 7. c3 {[%emt 0:05:24]} d5 {[%emt 0:03:58]} 8. Qe2 {[%emt 0:07:31] D05: Colle System with ...e6.} Be7 {[%emt 0:01:27]} 9. Ne5 {[%emt 0:04:26]} Qc7 {[%emt 0:25:36]} 10. f4 {[%emt 0:00:25] The position is equal.} (10. Nxc6 {simplifies} Bxc6 11. b3 O-O 12. Bb2) 10... O-O {[%emt 0:00:51]} 11. g4 {[%emt 0:05:01]} Ne4 {[%emt 0:03:39] [#]} (11... Nxe5 {simplifies} 12. dxe5 Ne4 13. Nxe4 dxe4 14. Bc2 c4) 12. Qg2 $146 {[%emt 0:02:04]} (12. Nxe4 {simplifies} Nxe5 13. Nxc5 Nxd3 14. Nxd3 Ba6 15. Rd1) ({Predecessor:} 12. g5 Nxe5 13. dxe5 f6 14. c4 fxe5 15. cxd5 exd5 16. Nxe4 c4 17. Qc2 Bc5 18. Be2 dxe4 19. Qxc4+ {0-1 (27) Simchenko,V (2249)-Skripko,P ICCF email 2005}) 12... f6 {[%emt 0:09:25]} (12... Nxe5 {looks sharper.} 13. fxe5 f5 14. gxf5 exf5 15. Bb5 a6) 13. Nxc6 {[%emt 0:05:48]} Qxc6 {[%emt 0:00:16]} 14. f5 {[%emt 0:07:54]} (14. a4 $15) 14... Nxd2 {[%emt 0:04:11]} (14... exf5 $17 15. gxf5 Nd6) 15. Bxd2 $11 {[%emt 0:00:18]} e5 {[%emt 0:00:17]} 16. dxe5 {[%emt 0:12:41]} fxe5 {[%emt 0:00:06]} 17. e4 {[%emt 0:10:31]} (17. c4 $11 {keeps the balance.}) 17... c4 $17 {[%emt 0:02:24]} ({Inferior is} 17... dxe4 18. Bc4+ Kh8 19. a4 $17) 18. Be2 {[%emt 0:09:58]} Bc5+ {[%emt 0:08:57]} 19. Kh1 {[%emt 0:00:01]} dxe4 {[%emt 0:00:13] And now ...e3 would win.} 20. Bg5 {[%emt 0:07:01]} ({Of course not} 20. Bxc4+ Kh8 21. Bg5 e3 22. Qxc6 Bxc6+ 23. Kg1 h6 $17) 20... b5 {[%emt 0:12:33]} 21. h3 {[%emt 0:03:15]} h6 {[%emt 0:09:42]} 22. Bh4 {[%emt 0:00:50][%cal Oa2a4]} e3 {[%emt 0:00:43] Inhibits a4.} ({Black should try} 22... Be3 $17 23. Rfd1 Rac8) 23. Bf3 $1 $15 {[%emt 0:02:47]} e4 {[%emt 0:00:02]} 24. Be2 {[%emt 0:00:25][%cal Oa2a4]} g5 $1 {[%emt 0:00:30] Prevents a4.} 25. fxg6 $2 {[%emt 0:02:27][%mdl 8192] [#]} (25. Bg3 $1 $15) 25... Qxg6 $2 {[%emt 0:00:45]} (25... Rf2 $1 $19 {[%cal Rf2g2][%mdl 512]} 26. Bxf2 (26. Rxf2 exf2) 26... exf2) 26. Rf5 $11 {[%emt 0:04:10]} Bb6 {[%emt 0:12:10] [#]} (26... Rxf5 $1 $11 {and Black stays safe.} 27. gxf5 Qxg2+ 28. Kxg2 Bc6) 27. Raf1 {[%emt 0:00:24]} ({Only move:} 27. Qh2 $1 $18) 27... Rxf5 $14 {[%emt 0:00:37]} 28. gxf5 {[%emt 0:00:46]} ({White should play} 28. Rxf5 $14 Rf8 29. Rxb5) 28... Qxg2+ $11 {[%emt 0:00:02]} 29. Kxg2 {[%emt 0:00:08]} Kf7 {[%emt 0:01:27] [#]} (29... Rc8 $11) 30. Bh5+ {[%emt 0:00:40]} (30. Rd1 $1 $16 {[%cal Rd1d7] Black must now prevent Rd7+.} Rg8+ 31. Kf1) 30... Kf8 {[%emt 0:00:01]} 31. Rd1 {[%emt 0:01:05]} Bc8 $2 {[%emt 0:00:42]} (31... Bc6 $14) 32. Rd5 {[%emt 0:00:46]} b4 $2 {[%emt 0:01:10]} (32... Bb7 $16 {is a better defense.} 33. Rd7 (33. Rxb5 Bc6 $14) 33... Bc6) 33. cxb4 $18 {[%emt 0:00:43]} a5 $2 {[%emt 0:00:12]} (33... Bb7 {was necessary.} 34. Rd6 Kg8) 34. Rd6 {[%emt 0:01:19]} Bc7 {[%emt 0:01:19]} (34... Rb8 $142 35. Bg3 Rb7) 35. Rxh6 {[%emt 0:00:03] Intending Bf6 and mate.} Kg7 {[%emt 0:00:34]} 36. Rg6+ {[%emt 0:00:21]} Kf8 {[%emt 0:00:25]} 37. Rf6+ {[%emt 0:00:37]} Kg8 {[%emt 0:00:07]} 38. Bf7+ {[%emt 0:00:23]} Kg7 {[%emt 0:00:16]} 39. Bd5 {[%emt 0:00:38] Rg6+ would kill now.} Ra7 {[%emt 0:01:14]} 40. Rg6+ {[%emt 0:00:21] Quite a comeback for White.   Weighted Error Value: White=0.55/Black=0.84} 1-0

[Event "Denmark Team Championship 2022"]
[Site "Denmark"]
[Date "2022.02.26"]
[Round "4.6"]
[White "Guindy, Esmat Susanne"]
[Black "Brondt, Nicolai Kvist"]
[Result "1/2-1/2"]
[ECO "A47"]
[WhiteElo "2069"]
[BlackElo "2259"]
[Annotator "TA"]
[PlyCount "92"]
[EventDate "2022.10.29"]
[EventType "team-tourn"]
[EventCountry "DEN"]
[SourceTitle "playchess.com"]
[Source "ChessBase"]
[SourceQuality "1"]
[TimeControl "40/5400+30:1800+30"]

{[%evp 9,92,-4,16,-12,6,9,16,2,16,13,13,25,23,11,18,14,14,8,10,0,51,51,50,0,0,0,0,0,14,13,16,20,5,0,6,0,0,0,0,4,8,10,10,0,0,0,0,0,1,0,43,30,49,56,72,67,107,111,97,52,52,52,52,45,51,43,43,43,43,43,43,43,43,43,43,43,43,43,43,43,43,43,43,43,43]} 1. d4 {[%emt 0:00:18]} Nf6 {[%emt 0:00:02]} 2. Nf3 {[%emt 0:01:01]} b6 {[%emt 0:00:05]} 3. c4 {[%emt 0:01:06]} Bb7 {[%emt 0:00:07]} 4. Nc3 {[%emt 0:01:56]} e6 {[%emt 0:00:14]} 5. Qc2 {[%emt 0:05:25]} d5 {[%emt 0:10:47]} 6. e3 {[%emt 0:02:35] E12: Queen's Indian: Unusual White 4th moves, 4 a3, 4 Nc3 Bb7 5 a3 and 4 Nc3 Bb7 .} Nbd7 {[%emt 0:09:53]} 7. cxd5 {[%emt 0:04:31]} exd5 {[%emt 0:07:56]} 8. Bd3 {[%emt 0:02:51] The position is equal.} a6 {[%emt 0:03:20]} 9. O-O {[%emt 0:01:40]} Bd6 {[%emt 0:07:50]} 10. e4 {[%emt 0:11:42]} dxe4 {[%emt 0:03:54]} 11. Nxe4 {[%emt 0:00:44]} O-O {[%emt 0:03:25]} 12. Nxd6 {[%emt 0:06:00]} cxd6 {[%emt 0:01:10]} 13. Bf4 {[%emt 0:02:35]} Bxf3 {[%emt 0:04:00]} 14. gxf3 {[%emt 0:01:00]} Nd5 {[%emt 0:02:35]} (14... Rc8 15. Qd2 $16) (14... Re8 $11) 15. Bxd6 $14 {[%emt 0:16:14]} (15. Bxh7+ Kh8 16. Bg3 (16. Bxd6 $2 Qg5+ 17. Bg3 f5 $19) 16... g6 17. Bxg6 fxg6 $11) 15... Qg5+ {[%emt 0:03:36] [#]} 16. Kh1 $146 {[%emt 0:10:19]} (16. Bg3 $1 $14) ({Predecessor:} 16. Bg3 f5 17. Qc6 f4 18. Qxd7 fxg3 19. hxg3 Nf4 20. Bc4+ Kh8 21. Qg4 Qh6 22. Rae1 {1-0 (37) Chatalbashev,B (2494)-Naumkin,I (2440) Porto San Giorgio 2000}) 16... Qf6 $1 $11 {[%emt 0:02:11][%csl LRd4,LRd6,LRf3]} 17. Bg3 {[%emt 0:07:23] A strong pair of Bishops.} (17. Bxf8 {gets mated.} Qxf3+ 18. Kg1 Nf4 19. Bxh7+ Kxf8) (17. Bxh7+ $2 {loses.} Kh8 18. Be4 (18. Bxf8 {is a self mate.} Qxf3+ 19. Kg1 Nf4 20. Bxg7+ Kxg7) 18... Qxd6 $19) 17... Qxf3+ {[%emt 0:22:32]} (17... Qxd4 $2 18. Bxh7+ Kh8 19. Be4 $18) 18. Kg1 {[%emt 0:00:06]} N7f6 {[%emt 0:07:40]} 19. Be2 {[%emt 0:08:59]} Qe4 {[%emt 0:00:14]} 20. Qxe4 {[%emt 0:00:30]} Nxe4 {[%emt 0:00:01]} 21. Be5 {[%emt 0:01:11]} Rfd8 {[%emt 0:01:18]} 22. Rfd1 {[%emt 0:05:51]} f6 {[%emt 0:01:36]} 23. Bg3 {[%emt 0:05:09]} Kf8 {[%emt 0:04:03]} 24. Rac1 {[%emt 0:00:34]} Nxg3 {[%emt 0:01:15]} 25. hxg3 {[%emt 0:00:22]} Rd6 {[%emt 0:00:29]} 26. Bc4 {[%emt 0:02:36]} Ne7 {[%emt 0:01:18]} 27. Rc3 {[%emt 0:00:24]} b5 {[%emt 0:00:33]} 28. Bb3 {[%emt 0:00:18]} Rad8 {[%emt 0:01:33]} 29. Rc7 {[%emt 0:00:46]} R6d7 {[%emt 0:00:38]} 30. Rxd7 {[%emt 0:00:12]} Rxd7 $14 {[%emt 0:00:03][%mdl 4096] Endgame KRB-KRN} 31. Be6 $1 {[%emt 0:00:56]} Rd8 {[%emt 0:01:08]} 32. d5 {[%emt 0:00:14]} Nc8 {[%emt 0:00:32]} 33. Rc1 {[%emt 0:00:16] White is more active.} Nb6 {[%emt 0:00:24]} 34. Rc7 {[%emt 0:00:35]} Nxd5 {[%emt 0:00:07] White is slightly better.} 35. Rf7+ {[%emt 0:00:23][%mdl 64] [#] Deflection} Ke8 {[%emt 0:00:33]} 36. Rxg7 {Hoping for Rg8+.} Rd6 37. Bxd5 {[%emt 0:00:38]} Rxd5 {[%emt 0:00:31]} 38. Rxh7 {[%emt 0:00:18] KR-KR} Rd2 {[%emt 0:01:14]} 39. Ra7 {[%emt 0:00:08]} Rxb2 {[%emt 0:00:26]} 40. Rxa6 {[%emt 0:00:06]} Kf7 {[%emt 0:00:20]} 41. Kg2 {[%emt 0:31:26]} b4 {[%emt 0:30:52]} 42. g4 {[%emt 0:00:00]} b3 {[%emt 0:00:00]} 43. axb3 {[%emt 0:00:00]} Rxb3 {[%emt 0:00:00]} 44. f3 {[%emt 0:00:00]} Kg6 {[%emt 0:00:00]} 45. Kg3 {[%emt 0:00:00]} Rc3 {[%emt 0:00:00]} 46. Ra5 {[%emt 0:00:00]} Rb3 {[%emt 0:00:00] Weighted Error Value: White=0.04 (flawless) /Black=0.08 (flawless)} 1/2-1/2

[Event "Denmark Team Championship 2022"]
[Site "Denmark"]
[Date "2022.02.26"]
[Round "4.7"]
[White "Berg, Klaus"]
[Black "Easwaralingam, Adesh"]
[Result "1-0"]
[ECO "A01"]
[WhiteElo "2278"]
[BlackElo "2155"]
[Annotator "TA"]
[PlyCount "97"]
[EventDate "2022.10.29"]
[EventType "team-tourn"]
[EventCountry "DEN"]
[SourceTitle "playchess.com"]
[Source "ChessBase"]
[SourceQuality "1"]
[TimeControl "40/5400+30:1800+30"]

{[%evp 10,97,21,29,27,20,20,15,22,13,13,0,4,4,22,20,12,0,21,32,38,38,40,18,32,6,12,0,8,0,38,33,83,87,112,112,108,93,96,105,120,125,125,125,125,125,119,122,115,115,115,118,119,64,63,33,55,57,61,45,55,47,45,45,124,117,384,377,377,377,376,356,314,306,456,456,369,129,129,135,143,129,354,336,1142,576,29978,29979,29976,29948]} 1. b3 {[%emt 0:01:26] Mueller,Karsten} Nf6 {[%emt 0:00:11]} 2. Bb2 {[%emt 0:00:36]} d5 {[%emt 0:01:12]} 3. Nf3 {[%emt 0:01:25]} c5 {[%emt 0:02:49]} 4. e3 {[%emt 0:01:48]} Nc6 {[%emt 0:01:25]} 5. Bb5 {[%emt 0:01:06]} Bg4 {[%emt 0:02:58]} 6. h3 {[%emt 0:07:19]} Bxf3 {[%emt 0:06:08] A06: Réti Opening: 1 Nf3 d5.} 7. Bxc6+ {[%emt 0:00:58]} bxc6 {[%emt 0:00:19]} 8. Qxf3 {[%emt 0:00:02]} e6 {[%emt 0:02:41] The position is equal.} 9. c4 {[%emt 0:00:13]} Bd6 {[%emt 0:01:29]} 10. Nc3 {[%emt 0:00:21]} O-O {[%emt 0:02:43]} 11. O-O {[%emt 0:00:42]} Rb8 {[%emt 0:05:38]} 12. d3 {[%emt 0:05:17] [#]} Nd7 $146 {[%emt 0:08:41]} ({Predecessor:} 12... Qe7 13. Rac1 Rfd8 14. Rfd1 Rbc8 15. Ne2 Nd7 16. Qh5 Nf6 17. Qh4 Nd7 18. Qxe7 Bxe7 {½-½ (66) Altounian,L (2456)-Epstein,E (2188) San Diego 2004 CBM 105 [Mueller,Karsten]}) 13. Rfd1 {[%emt 0:02:05]} Qg5 {[%emt 0:02:21]} 14. Rac1 {[%emt 0:08:28]} Rfd8 {[%emt 0:06:10]} 15. Ba3 {[%emt 0:08:09]} h6 {[%emt 0:05:58]} 16. Na4 {[%emt 0:08:30]} Qe7 {[%emt 0:01:55]} 17. cxd5 {[%emt 0:02:47]} cxd5 {[%emt 0:00:52]} 18. Rc2 {[%emt 0:00:48]} Rbc8 {[%emt 0:12:00]} 19. Rdc1 {[%emt 0:00:11]} Qf8 {[%emt 0:00:57]} (19... Ne5 $5 {[%cal Re5f3]} 20. Qe2 Nxd3 21. Qxd3 c4 22. Bxd6 cxd3 23. Bxe7 Rxc2 $11) 20. Qe2 {[%emt 0:07:23]} Rc7 {[%emt 0:07:56]} ({Black should try} 20... e5 $14) 21. d4 $16 {[%emt 0:01:18]} c4 {[%emt 0:01:11]} 22. Bxd6 {[%emt 0:00:37]} Qxd6 {[%emt 0:00:04]} 23. bxc4 {[%emt 0:01:09]} Qa6 {[%emt 0:00:59]} 24. Nb2 {[%emt 0:05:03][%cal Ba4b2,Bb2d3,Bd3b4][%mdl 32]} Qxa2 {[%emt 0:01:46]} 25. Nd3 {[%emt 0:05:00]} Qa6 {[%emt 0:02:32][%cal Rd5c4]} 26. cxd5 {[%emt 0:04:02]} Rxc2 {[%emt 0:00:55]} 27. Qxc2 {[%emt 0:00:04] Strongly threatening Qc7.} exd5 {[%emt 0:00:57]} 28. Nb4 {[%emt 0:02:12]} Qd6 29. Qc7 {[%emt 0:05:01]} Nb6 {[%emt 0:02:42]} 30. Qxd6 {[%emt 0:06:08] White has more active pieces.} Rxd6 {[%emt 0:00:25][%mdl 4096] Endgame KRN-KRN} 31. Rc7 {[%emt 0:02:32]} ({Better is} 31. Rc5 $16) 31... a5 $14 {[%emt 0:01:33]} 32. Nd3 {[%emt 0:03:03]} Nc4 {[%emt 0:02:23]} 33. Rc8+ {[%emt 0:03:41]} Kh7 {[%emt 0:00:29]} 34. Ra8 {[%emt 0:01:12]} g5 {[%emt 0:03:54]} 35. Ne5 {[%emt 0:02:37]} Nxe5 $1 {[%emt 0:07:43]} 36. dxe5 {[%emt 0:00:01] KR-KR} Re6 {[%emt 0:00:09]} (36... Rd7 $1 $14) 37. f4 $1 $16 {[%emt 0:00:54]} (37. Rxa5 Rxe5 38. Ra8 h5 $14) 37... f6 $2 {[%emt 0:00:06][%mdl 8192]} (37... Rb6 $16) 38. exf6 $18 {[%emt 0:01:25]} (38. Rxa5 gxf4 39. exf4 fxe5 $14) 38... Rxf6 {[%emt 0:00:27]} 39. fxg5 {[%emt 0:00:14]} (39. Rxa5 gxf4 40. exf4 (40. Rxd5 fxe3 41. Re5 Kg6 $14) 40... Rxf4 $14) 39... hxg5 {[%emt 0:00:19][%cal Od5d4]} 40. Rxa5 {[%emt 0:00:04]} Rd6 {[%emt 0:00:19] [#]} 41. e4 $1 {[%emt 0:10:24]} g4 {[%emt 0:04:38]} (41... Rf6 {was called for.} 42. Rxd5 (42. exd5 Rf5 $18) 42... Rf4) 42. Rxd5 {[%emt 0:03:24]} (42. exd5 gxh3 43. g3 (43. gxh3 Kg6 $16) 43... Kg6 $18) 42... Re6 {[%emt 0:00:09] [#]} 43. Rd4 $2 {[%emt 0:02:56]} ({Less strong is} 43. hxg4 Rxe4 44. g5 Kg6 $14) (43. h4 $1 $18 {is the precise move to win.}) 43... gxh3 $16 {[%emt 0:00:10]} 44. gxh3 {[%emt 0:00:12]} Kg6 {[%emt 0:00:17]} 45. Kf2 {[%emt 0:00:23] Black must now prevent Kf3.} ({Much worse is} 45. h4 $6 Kh5 $11) 45... Kh5 $2 {[%emt 0:00:55] Black cannot hold the game after this.} (45... Kf7 $16 {was worth a try.} 46. Ra4 Rh6) 46. Kg3 $18 {[%emt 0:00:48] And now Kf4 would win.} Rg6+ $2 {[%emt 0:00:56]} (46... Kg6 47. h4 Kf7) 47. Kf4 {[%emt 0:00:15] White threatens e5 and mate.} Kh4 {[%emt 0:00:23]} 48. e5 {[%emt 0:02:04]} Kxh3 {[%emt 0:00:18]} 49. Ke4 {[%emt 0:00:10] Weighted Error Value: White=0.10 (very precise) /Black=0.41} 1-0

[Event "Denmark Team Championship 2022"]
[Site "Denmark"]
[Date "2022.03.13"]
[Round "4.7"]
[White "Grubert, Christian"]
[Black "Greger, Roland Reinhard"]
[Result "1/2-1/2"]
[ECO "B50"]
[WhiteElo "2076"]
[BlackElo "2267"]
[Annotator "TA"]
[PlyCount "40"]
[EventDate "2022.10.29"]
[EventType "team-tourn"]
[EventCountry "DEN"]
[SourceTitle "playchess.com"]
[Source "ChessBase"]
[SourceQuality "1"]
[TimeControl "40/5400+30:1800+30"]

{[%evp 13,40,-22,16,-2,-3,-4,0,-25,20,22,32,42,87,24,39,19,23,19,21,25,29,12,16,16,17,12,43,42,54]} 1. Nf3 {[%emt 0:00:04]} c5 {[%emt 0:00:27]} 2. e4 {[%emt 0:00:14]} d6 {[%emt 0:00:39]} 3. g3 {[%emt 0:00:21]} Nc6 {[%emt 0:00:28]} 4. Bg2 {[%emt 0:00:18]} g6 {[%emt 0:00:24]} 5. O-O {[%emt 0:00:29]} Bg7 {[%emt 0:00:08]} 6. c3 {[%emt 0:01:02][%cal Bc2c3,Bc3d4,Bd4d5][%mdl 32]} Nf6 {[%emt 0:01:24]} 7. Qe2 {[%emt 0:01:27]} O-O {[%emt 0:03:12]} 8. Rd1 {[%emt 0:03:23] A04: Unusual lines after 1 Nf3 and King's Indian Attack.} e5 {[%emt 0:10:16]} 9. d4 {[%emt 0:06:28]} exd4 {[%emt 0:03:16]} ({Much less strong is} 9... Bg4 10. dxc5 Ne8 11. h3 $16) 10. cxd4 {[%emt 0:00:46] The position is equal.} Qe7 {[%emt 0:02:27] [#]} 11. d5 $146 {[%emt 0:05:20]} ({Predecessor:} 11. Nc3 Bg4 12. dxc5 dxc5 13. Be3 Rfd8 14. Qb5 Bf8 15. h3 a6 16. Qb6 Be6 17. Ng5 {½-½ (34) Trybus,D (1894)-Sieciechowicz,M (2438) Gora Sw Anny 2019}) 11... Ne5 {[%emt 0:04:12]} 12. Nxe5 {[%emt 0:01:44]} dxe5 {[%emt 0:00:40]} 13. Nc3 {[%emt 0:04:36]} (13. Bg5 $16) 13... Ne8 $11 {[%emt 0:01:56]} 14. Be3 {[%emt 0:05:38][%cal Od5d6] Threatens to win with d6!} b6 {[%emt 0:01:36]} 15. a4 $36 {[%emt 0:01:57][%cal Ba2a4,Ba4a5][%mdl 2080] White has good play.} Nd6 {[%emt 0:03:37]} 16. a5 {[%emt 0:03:34] [#] Strongly threatening axb6.} Bd7 {[%emt 0:02:03]} 17. Rdb1 {[%emt 0:04:33]} f5 {[%emt 0:05:58]} 18. f3 {[%emt 0:01:09]} f4 {[%emt 0:05:28]} 19. Bf2 {[%emt 0:00:44]} fxg3 {[%emt 0:00:53]} 20. hxg3 {[%emt 0:01:04]} Qg5 {[%emt 0:03:19] Weighted Error Value: White=0.13 (very precise) /Black=0.14 (very precise)} 1/2-1/2

[Event "Denmark Team Championship 2022"]
[Site "Denmark"]
[Date "2022.03.13"]
[Round "4.8"]
[White "Laursen, Niels Norskov"]
[Black "Luther, Lasse"]
[Result "1/2-1/2"]
[ECO "C88"]
[WhiteElo "2166"]
[BlackElo "2047"]
[Annotator "RC"]
[PlyCount "36"]
[EventDate "2022.10.29"]
[EventType "team-tourn"]
[EventCountry "DEN"]
[SourceTitle "playchess.com"]
[Source "ChessBase"]
[SourceQuality "1"]
[TimeControl "40/5400+30:1800+30"]

1. e4 {[%emt 0:00:04]} e5 {[%emt 0:00:16]} 2. Nf3 {[%emt 0:00:09]} Nc6 {[%emt 0:00:08]} 3. Bb5 {[%emt 0:00:13]} a6 {[%emt 0:00:08]} 4. Ba4 {[%emt 0:00:12]} Nf6 {[%emt 0:00:14]} 5. O-O {[%emt 0:00:21]} Be7 {[%emt 0:00:41]} 6. Re1 {[%emt 0:00:26]} b5 {[%emt 0:00:18]} 7. Bb3 {[%emt 0:00:08]} d6 {[%emt 0:00:36]} 8. a4 {[%emt 0:04:58]} Bd7 {[%emt 0:01:51]} 9. c3 {[%emt 0:01:00]} O-O {[%emt 0:02:25]} 10. d4 {[%emt 0:02:35]} h6 {[%emt 0:02:47]} 11. Nbd2 {[%emt 0:03:48]} Re8 {[%emt 0:07:02]} 12. Nf1 {[%emt 0:05:46]} Bf8 {[%emt 0:03:13]} 13. Ng3 {[%emt 0:10:11]} Na5 {[%emt 0:07:47]} 14. Bc2 {[%emt 0:00:57]} c5 {[%emt 0:01:04]} 15. h3 {[%emt 0:06:28]} cxd4 {[%emt 0:11:55]} 16. cxd4 {[%emt 0:00:22]} Qc7 {[%emt 0:04:06]} 17. b3 {[%emt 0:09:19]} Rac8 {[%emt 0:08:44]} 18. Ra2 {[%emt 0:03:19]} Nc6 {[%emt 0:06:32]} 1/2-1/2

[Event "Denmark Team Championship 2022"]
[Site "Denmark"]
[Date "2022.02.26"]
[Round "4.8"]
[White "Jakobsen, Niels Nybo"]
[Black "Pedersen, Jan Rode"]
[Result "1-0"]
[ECO "A05"]
[WhiteElo "2045"]
[BlackElo "2102"]
[Annotator "NA RC"]
[PlyCount "85"]
[EventDate "2022.10.29"]
[EventType "team-tourn"]
[EventCountry "DEN"]
[SourceTitle "playchess.com"]
[Source "ChessBase"]
[SourceQuality "1"]
[TimeControl "40/5400+30:1800+30"]

1. Nf3 {[%emt 0:00:11]} Nf6 {[%emt 0:00:23]} 2. g3 {[%emt 0:00:19]} b6 {[%emt 0:04:56]} 3. Bg2 {[%emt 0:01:14]} Bb7 {[%emt 0:00:07]} 4. c4 {[%emt 0:04:37]} e6 {[%emt 0:00:16]} 5. O-O {[%emt 0:00:31]} Be7 {[%emt 0:00:33]} 6. b3 {[%emt 0:02:26]} O-O {[%emt 0:02:15]} 7. Bb2 {[%emt 0:00:37]} d6 {[%emt 0:05:51]} 8. Nc3 {[%emt 0:05:04]} Nbd7 {[%emt 0:02:16]} 9. Rc1 {[%emt 0:04:04]} Rb8 {[%emt 0:01:56]} 10. Qc2 {[%emt 0:01:51]} c5 {[%emt 0:14:07]} 11. Rfd1 {[%emt 0:03:02]} a6 {[%emt 0:14:09]} 12. d4 {[%emt 0:02:35]} Qc7 {[%emt 0:03:53]} 13. e4 {[%emt 0:15:06]} cxd4 {[%emt 0:02:59]} 14. Nxd4 {[%emt 0:01:20]} Rbc8 {[%emt 0:00:09]} 15. Qe2 {[%emt 0:04:28]} Rfe8 {[%emt 0:01:25]} 16. f4 {[%emt 0:03:51]} Qb8 {[%emt 0:00:37]} 17. f5 {[%emt 0:02:06]} Bf8 {[%emt 0:08:13]} 18. fxe6 {[%emt 0:02:25]} fxe6 {[%emt 0:00:02]} 19. Bh3 {[%emt 0:04:33]} Nc5 {[%emt 0:00:20]} 20. b4 {[%emt 0:02:02]} e5 {[%emt 0:00:06]} 21. bxc5 {[%emt 0:02:11]} exd4 {[%emt 0:00:14]} 22. Nd5 {[%emt 0:01:35]} Rxe4 {[%emt 0:04:55]} 23. Nxf6+ {[%emt 0:08:15]} gxf6 {[%emt 0:00:06]} 24. Qh5 {[%emt 0:02:38]} Rxc5 {[%emt 0:08:33]} 25. Bf5 {[%emt 0:02:00]} Qc7 {[%emt 0:00:37]} 26. Bxd4 {[%emt 0:06:54]} Re7 {[%emt 0:03:39]} 27. Qg4+ {[%emt 0:03:04]} Bg7 {[%emt 0:00:21]} 28. Be6+ {[%emt 0:03:20]} Kf8 {[%emt 0:03:52]} 29. Bxf6 {[%emt 0:00:35]} h5 {[%emt 0:04:30]} 30. Bxe7+ {[%emt 0:01:36]} Qxe7 {[%emt 0:00:19]} 31. Rf1+ {[%emt 0:00:53]} Ke8 32. Qg6+ {[%emt 0:00:50]} Kd8 {[%emt 0:00:09]} 33. Rf7 {[%emt 0:00:12]} Bd4+ {[%emt 0:04:05]} 34. Kf1 {[%emt 0:00:24]} Rg5 {[%emt 0:00:24]} 35. Qh6 {[%emt 0:02:41]} Qxf7+ {[%emt 0:07:50]} 36. Bxf7 {[%emt 0:00:18]} Rf5+ {[%emt 0:00:04]} 37. Ke1 {[%emt 0:00:29]} Rxf7 {[%emt 0:00:16]} 38. Qxd6+ {[%emt 0:01:39]} Rd7 {[%emt 0:00:59]} 39. Qxd7+ {[%emt 0:01:05]} Kxd7 {[%emt 0:00:09]} 40. Rd1 {[%emt 0:00:04]} Kd6 {[%emt 0:00:30]} 41. Rxd4+ {[%emt 0:30:06]} Kc5 {[%emt 0:30:05]} 42. Rh4 {[%emt 0:00:05]} Bf3 {[%emt 0:00:20]} 43. Kd2 {[%emt 0:00:25]} 1-0